{"text_format":"1","workbook":"xlsx","n_sheets":1,"sheets":["01.07.2021 СВОД "],"not_rendered":{"charts":0,"images":0,"macros":0,"external_links":0,"defined_names":2,"comments":0,"pivot_tables":0},"unopened":[],"bounds":{"document_bytes":16777216,"sheet_cells":100000,"rows_first":2000,"rows_last":500,"rows_between":2000,"halvings":0,"cell_chars":16384,"cell_head_chars":4096},"cells_cut":0,"cells_raw":0,"read":"whole","date_system":"1900"}

{"sheet":"01.07.2021 СВОД ","index":0,"n_rows":47,"n_cols":6,"rows_kept":47,"cut":false,"hidden":false,"merged":[[49,1,49,2],[0,3,0,5],[1,3,1,5],[2,3,2,5],[4,0,4,5],[43,0,43,2],[48,1,48,2]]}
[null,null,null,"Приложение №2"]
[null,null,null,"к постановлению администрации                                                                                                                                                                                                                                                                                                                                                                                                                                                                                                          ЗАТО г. Радужный Владимирской области"]
[null,null,null,"от 16.07.2021№ 867"]
[]
["Сведения о фактической численности муниципальных служащих, работников казенных и бюджетных учреждений и расходы на их денежное содержание по состоянию на 01.07.2021 года"]
[]
["№п/п","Код раздела (подраздела)","Наименование раздела (подраздела) расходов","Фактическая численность на 01.07.2021 года (чел.)","Годовой фонд оплаты труда с начислениями (тыс.руб.)","Исполнено за отчетный период (тыс.руб.)"]
[1,2,3,4,5,6]
[1,"0100","Общегосударственные вопросы",{"$f":"D11+D12+D13+D14+D15","v":205},{"$f":"E11+E12+E13+E14+E15","v":72607.240000000005},{"$f":"F11+F12+F13+F14+F15","v":31734.480000000003}]
[null,null,"в том числе:"]
["1.1","0102","Функционирование высшего должностного лица субъекта Российской Федерации и муниципального образования",1,1954.97,838.73]
["1.2","0103","Функционирование законодательных (представительных) органов государственной власти и представительных органов муниципальных образований",2,2039.83,845.93]
["1.3","0104","Функционирование Правительства Российской Федерации, высших исполнительных органов государственной власти субъектов Российской Федерации, местных администраций",13,8923.83,3549.94]
["1.4","0106","Обеспечение деятельности финансовых, налоговых и таможенных органов и органов финансового (финансово-бюджетного) надзора",10,5298.53,2227.11]
["1.5","0113","Другие общегосударственные вопросы",179,54390.080000000002,24272.77]
["2","0300","Национальная безопасность и правоохранительная деятельность, всего, в том числе",{"$f":"D18","v":5},{"$f":"E18","v":2393.6},{"$f":"F18","v":1020.47}]
[null,null,"в том числе:"]
["2.1","0309","Защита населения и территории от чрезвычайных ситуаций природного и техногенного характера, гражданская оборона",5,2393.6,1020.47]
["3","0400","Национальная экономика",42,16905.45,7490.28]
["3.1","0409","Дорожное хозяйство (дорожные фонды)",42,16905.45,7490.28]
["4","0500","Жилищно-коммунальное хозяйство",{"$f":"D23+D24","v":59},{"$f":"E23+E24","v":24365.27},10490.55]
[null,null,"в том числе:"]
["4.1","0503","Благоустройство",6,2285.25,868.34]
["4.2","0505","Другие вопросы в области жилищно-коммунального хозяйства",53,22080.02,9622.2099999999991]
["5","0700","Образование",{"$f":"D27+D28+D29+D30","v":506},{"$f":"E27+E28+E29+E30","v":225135.82},{"$f":"F27+F28+F29+F30","v":133887.40000000002}]
[null,null,"в том числе:"]
["5.1","0701","Дошкольное образование",216,85663.71,53392.51]
["5.2","0702","Общее образование ",177,93462.33,57424]
["5.3","0703","Дополнительное образование детей",87,{"$f":"14034.03+18122.22+3431.56","v":35587.81},{"$f":"7821.99+10063.91+781.85","v":18667.75}]
["5.4","0709","Другие вопросы в области образования",26,10421.969999999999,4403.1400000000003]
["6","0800","Культура, кинематография",{"$f":"D33+D34","v":92},{"$f":"E33+E34","v":33513.31},{"$f":"F33+F34","v":16641.53}]
[null,null,"в том числе:"]
["6.1","0801","Культура",52,21523.599999999999,11142.77]
["6.2","0804","Другие вопросы в области культуры, кинематографии",40,11989.71,5498.76]
["7","1000","Социальная политика",{"$f":"D37","v":2},{"$f":"E37","v":1030.43},413.47]
[null,null,"в том числе:"]
["7.1","1006","Другие вопросы в области социальной политики",2,1030.43,210.87]
["8","1100","Физическая культура и спорт",{"$f":"D40","v":2},{"$f":"E40","v":752.59},{"$f":"F40","v":270.26}]
[null,null,"в том числе:"]
["8.1","1103","Спорт высших достижений",2,752.59,270.26]
[null,null,"Всего:",{"$f":"D9+D16+D19+D21+D25+D31+D35+D38","v":913},{"$f":"E9+E16+E19+E21+E25+E31+E35+E38","v":376703.71},{"$f":"F9+F16+F19+F21+F25+F31+F35+F38","v":201948.44000000003}]
[]
[]
["И.о. начальника финансового управления администрации ЗАТО г. Радужный Владимирской области",null,null,null,"М.Л. Семенович"]
[]
[]
["Ю.И. Аксенова, 3-67-17"]